Cogmind - Beta 13 @@@ ROGUE MODE // 2024.03.31 @ 19:21:36 Player: Kat Result: Self-destructed Performance ------------- Evolutions (1) 500 Regions Visited (2) 400 Robots Destroyed (22) 110 Value Destroyed (577) 577 Prototype IDs (2) 40 Alien Tech Used (0) 0 Bonus (0) 0 TOTAL SCORE: 1627 Bonus ------- None Cogmind --------- Core Integrity 324/400 Matter 300/300 Energy 40/100 System Corruption 13% Temperature Cool (6) Movement Core (1400) Ox27 Location -9/Materials Parts ------- > --- POWER (1) -------- (None) > --- PROPULSION (2) --- (None) > --- UTILITY (4) ------ Huge Storage Unit Signal Interpreter > --- WEAPON (2) ------- Light EM Pulse Cannon > --- INVENTORY (25) --- Light Ion Engine Heat Sink Small Storage Unit Medium Storage Unit Visual Processing Unit Terrain Scanner Peak State ------------ > --- POWER ------------ Improved Ion Engine > --- PROPULSION ------- Wheel Compact Wheel > --- UTILITY ---------- Heat Sink Huge Storage Unit Targeting Computer Hardened Light Armor Plating > --- WEAPON ----------- Particle Cannon Particle Cannon > --- INVENTORY -------- Light Ion Engine Small Storage Unit Medium Storage Unit Visual Processing Unit Sensor Array Terrain Scanner [Rating: 13] Favorites ----------- Power Improved Ion Engine Engine Improved Ion Engine Propulsion Wheel Wheel Wheel Flight Unit Flight Unit Utility Targeting Computer Device Sensor Array Storage Huge Storage Unit Processor Targeting Computer Protection Hardened Light Armor Plating Weapon Light EM Pulse Cannon Energy Gun Particle Gun Energy Cannon Light EM Pulse Cannon Ballistic Gun Light Assault Rifle Launcher Grenade Launcher Build | -11 -10 -9 ------- Run | Yrd Mat Mat Slots Evolved 2 | . . 2 Power . | . . . Propulsion . | . . . Utility 2 | . . 2 Weapon . | . . . Parts Attached 25 | 5 5 15 Power 2 | 1 . 1 Engine 2 | 1 . 1 Core . | . . . Reactor . | . . . Propulsion 3 | 2 . 1 Treads . | . . . Leg . | . . . Wheel 2 | 2 . . Hover . | . . . Flight 1 | . . 1 Utility 12 | 1 3 8 Device 6 | . 1 5 Storage 3 | 1 1 1 Processor 2 | . 1 1 Hackware . | . . . Protection 1 | . . 1 Artifact . | . . . Weapon 8 | 1 2 5 Energy Gun 1 | . 1 . Energy Cannon 5 | . . 5 Ballistic Gun 1 | 1 . . Ballistic Cannon . | . . . Launcher 1 | . 1 . Special Weapon . | . . . Impact Weapon . | . . . Slashing Weapon . | . . . Piercing Weapon . | . . . Special Melee Weapon . | . . . Unidentified Prototypes . | . . . Parts Lost 7 | . . 7 Power 1 | . . 1 Propulsion 3 | . . 3 Utility 2 | . . 2 Weapon 1 | . . 1 Highest Loss Streak 5 | . . 5 To Critical Strikes 1 | . . 1 Average Slot Usage (%) 89 | . 90 89 Engine 11 | . 14 10 Wheel 13 | . 28 11 Flight 1 | . . 2 Device 10 | . 4 11 Storage 11 | . 14 11 Processor 14 | . 4 15 Protection 3 | . . 4 Energy Gun 1 | . 9 . Energy Cannon 18 | . . 21 Ballistic Gun 2 | . 14 . Naked Turns . | . . . Heaviest Build 101 | 9 18 101 Greatest Support 26 | 26 26 26 Greatest Overweight (x) 31 | . . 31 Average Overweight (x) 3 | . . 6 Largest Inventory Capacity 25 | 8 10 25 Average Capacity 18 | 6 8 20 Most Carried 8 | 2 5 8 Average Carried 4 | . 2 5 Final Capacity 25 | 8 10 25 Final Carried 6 | . 5 6 Class Distribution -------------------- 83% | Mutant 16% | Scavenger-Mutant Dominant Class ---------------- Mutant | -10/Materials Mutant | -9/Materials Resources | -11 -10 -9 ----------- Run | Yrd Mat Mat Matter Collected 477 | 146 136 195 Remotely . | . . . Salvage Created 775 | . 136 639 Parts 44 | . 11 33 Haulers Intercepted . | . . . Recyclers Shooed 1 | . . 1 Parts Field Recycled . | . . . Retrieved Matter . | . . . Parts Self-Destructed . | . . . Prevented . | . . . Kills | -11 -10 -9 ------- Run | Yrd Mat Mat Combat Hostiles Destroyed 16 | . 4 12 Guns 2 | . 2 . Cannons 11 | . . 11 AOE 2 | . 2 . Classes Destroyed 8 | . 2 6 Worker 1 | . . 1 Recycler 2 | . . 2 Operator 1 | . . 1 Watcher 2 | . 1 1 Swarmer 4 | . . 4 Grunt 8 | . 4 4 Brawler 1 | . . 1 Sentry 3 | . . 3 Best Kill Streak 4 | . 2 4 Combat Bots Only 4 | . 2 4 Max Kills in Single Turn 2 | . 2 1 Gunslinging . | . . . Exploded 2 | . 2 . Melee . | . . . Uniques/NPCs Destroyed . | . . . Combat | -11 -10 -9 -------- Run | Yrd Mat Mat Hostile Shots Fired 79 | . 16 63 Missed 13 | . 3 10 Damage Taken 787 | . 145 642 Core 121 | . 45 76 Absorbed by Shields . | . . . Core Remaining (%) 91 | 100 82 . Volleys Fired 51 | . 12 39 Largest 2 | . 2 2 Hottest 136 | . 85 136 Shots Fired 99 | . 24 75 Gun 22 | . 22 . Cannon 75 | . . 75 Launcher 2 | . 2 . Special . | . . . Kinetic 12 | . 12 . Thermal 62 | . 10 52 Explosive 2 | . 2 . Electromagnetic 23 | . . 23 Robot Hit Streak 14 | . 4 14 Robot Miss Streak 4 | . 2 4 Penetration Max . | . . . Secondary Targets . | . . . Shots Hit Robots 63 | . 13 50 Core Hits 27 | . 10 17 Critical Kills . | . . . Critical Parts Destroyed . | . . . Critical Strikes 1 | . . 1 Corrupt 1 | . . 1 Melee Attacks . | . . . Impact . | . . . Slashing . | . . . Piercing . | . . . Sneak Attacks . | . . . Combat Hostiles . | . . . Follow-up Attacks . | . . . Damage Inflicted 1373 | . 282 1091 Guns 151 | . 151 . Cannons 1091 | . . 1091 Explosions 131 | . 131 . Melee . | . . . Ramming . | . . . Kinetic 44 | . 44 . Thermal 883 | . 107 776 Explosive 131 | . 131 . Electromagnetic 315 | . . 315 Impact . | . . . Slashing . | . . . Piercing . | . . . Highest Corruption 13 | . . 13 Average Corruption 6 | . . 6 Corruption Purged . | . . . Corruption Blocked . | . . . Effects 1 | . . 1 Matter Fused 1 | . . 1 Overload Shots . | . . . Overflow Damage 2 | . . 2 Projectiles 2 | . . 2 Explosions . | . . . Melee . | . . . Knockbacks . | . . . Impact . | . . . Kinetic . | . . . Secondary . | . . . Self-Inflicted Damage . | . . . Shots . | . . . Rammed 1 | . . 1 Targets Rammed 1 | . . 1 Kicked . | . . . Crushed . | . . . Highest Temperature 366 | . 250 366 Average Temperature 125 | . 85 136 Received Heat Transfer 264 | . 99 165 Effects 2 | . . 2 Energy Bleed 2 | . . 2 Siege Activations . | . . . Robots Corrupted . | . . . Combat Hostiles . | . . . Parts Fried 2 | . . 2 Impact Corruptions . | . . . Robots Melted 1 | . . 1 Combat Hostiles 1 | . . 1 Parts Melted 7 | . 1 6 Heat Transferred 1665 | . 259 1406 Parts Sabotaged . | . . . Parts Stolen . | . . . Parts Stripped . | . . . Power Chain Reactions . | . . . Alert | -11 -10 -9 ------- Run | Yrd Mat Mat Peak Influence 205 | . 146 205 Initial 61 | . . 61 Average 65 | . 75 66 Maximum Alert Level 1 | . . 1 Low Security (%) 98 | 100 100 98 Level 1 1 | . . 1 Level 2 . | . . . Level 3 . | . . . Level 4 . | . . . Level 5 . | . . . High Security . | . . . Max Security . | . . . Squads Dispatched 6 | . 2 4 Investigation 4 | . 1 3 Extermination . | . . . Reinforcement 2 | . 1 1 Assault . | . . . Garrison . | . . . Intercept . | . . . Searches Triggered . | . . . Construction Impeded . | . . . Haulers Reinforced . | . . . Active Scanning Responses . | . . . Cargo Convoy Interrupts . | . . . Stealth | -11 -10 -9 --------- Run | Yrd Mat Mat Distress Signals 1 | . . 1 Communications Jammed . | . . . Distress Signals . | . . . Times Spotted 25 | . 8 17 Peak Tracking Total 7 | . 7 4 Tactical Retreats 2 | . . 2 Traps | -11 -10 -9 ------- Run | Yrd Mat Mat Traps Triggered . | . . . Indirectly . | . . . Trap Hack Attempts . | . . . Triggered . | . . . Disarmed . | . . . Reprogrammed . | . . . Reused . | . . . Traps Extracted . | . . . Installed . | . . . Triggered 1 | . . 1 Machines | -11 -10 -9 ---------- Run | Yrd Mat Mat Machines Disabled 2 | . . 2 Max in Single Turn 1 | . . 1 Machines Repaired . | . . . Machines Dismantled . | . . . Machines Sabotaged . | . . . Overloaded Fab Kills . | . . . Hacking | -11 -10 -9 --------- Run | Yrd Mat Mat Machines Accessed 5 | . 2 3 Terminals 3 | . 2 1 Fabricators . | . . . Repair Stations . | . . . Recycling Units 1 | . . 1 Scanalyzers 1 | . . 1 Garrison Access . | . . . Total Hacks 15 | . 7 8 Successful 7 | . 3 4 Failed 8 | . 4 4 Catastrophic . | . . . Database Lockouts . | . . . Manual . | . . . Terminals 10 | . 7 3 Fabricators . | . . . Repair Stations . | . . . Recycling Units 3 | . . 3 Scanalyzers 2 | . . 2 Garrison Access . | . . . Terminal Hacks 5 | . 3 2 Prototype ID Bank 1 | . 1 . Alert Level 1 | . . 1 Unreport Threat 1 | . . 1 Locate Traps 1 | . 1 . Maintenance Status 1 | . 1 . Fabricator Hacks . | . . . Repair Station Hacks . | . . . Recycling Unit Hacks 1 | . . 1 Report Inventory 1 | . . 1 Scanalyzer 1 | . . 1 Insert Component 1 | . . 1 Garrison Access Hacks . | . . . Unauthorized Hacks . | . . . Terminals . | . . . Fabricators . | . . . Repair Stations . | . . . Recycling Units . | . . . Scanalyzers . | . . . Garrison Access . | . . . Data Cores Recovered . | . . . Used . | . . . Hacking Detections 5 | . 2 3 Full Trace Events 3 | . 1 2 Feedback Events . | . . . Feedback Blocked . | . . . Robot Schematics Acquired . | . . . Robots Built . | . . . Authchips . | . . . Time . | . . . Total Robot Build Rating . | . . . Part Schematics Acquired . | . . . Parts Built . | . . . Authchips . | . . . Time . | . . . Total Part Build Rating . | . . . Parts Repaired . | . . . Time . | . . . Parts Recycled . | . . . Recycled Matter . | . . . Retrieved Matter . | . . . Retrieved Components . | . . . Parts Scanalyzed . | . . . Part Schematics Acquired . | . . . Parts Damaged . | . . . Bothacking | -11 -10 -9 ------------ Run | Yrd Mat Mat Used RIF Installer . | . . . Robots Hacked . | . . . Non-combat . | . . . Combat . | . . . Robot Hacks Applied . | . . . Relay Couplers Released . | . . . Fabnet Peak Effective % . | . . . Robots Rewired . | . . . Allies Hacked . | . . . Hacks Repelled . | . . . Allies | -11 -10 -9 -------- Run | Yrd Mat Mat Total Allies . | . . . Largest Group . | . . . Highest-Rated Group . | . . . Highest-Rated Ally . | . . . Total Orders . | . . . Ally Attacks . | . . . Total Damage . | . . . Kills . | . . . Allies Corrupted . | . . . Allies Melted . | . . . Intel | -11 -10 -9 ------- Run | Yrd Mat Mat Robot Analysis Total . | . . . Derelict Logs Recovered . | . . . Drone Launches . | . . . Drone Recoveries . | . . . Exploration | -11 -10 -9 ------------- Run | Yrd Mat Mat Turns Passed 1201 | 38 159 1004 Spaces Moved 336 | 33 112 191 Core 8 | 3 . 5 Treads . | . . . Legs . | . . . Wheels 318 | 30 112 176 Hover . | . . . Flight 10 | . . 10 Fastest Speed 50 | 50 90 90 Average Speed 201 | 86 90 287 Slowest Speed 1880 | 90 90 1880 Overloaded Moves . | . . . Propulsion Burnouts . | . . . Robots Hopped . | . . . Cave-ins Triggered . | . . . Exploration Rate (%) 14 | 4 22 16 Regions Visited 2 Branch Regions . Pre-discovered Areas . | . . . Known Exits Taken . | . . . Unknown Exits Taken 2 | 1 1 . Scrap Searched . | . . . Spaces Dug . | . . . Terrain Destroyed 18 | . 18 . Melee . | . . . Projectile . | . . . AOE 18 | . 18 . Terrain Rammed . | . . . Walls Destroyed . | . . . Machines Disabled . | . . . Actions | -11 -10 -9 --------- Run | Yrd Mat Mat Total 740 | 42 148 550 Wait 299 | . 9 290 Move 334 | 32 111 191 Hop . | . . . Pick Up 23 | 5 9 9 Fast Attach . | . . . Attach 12 | 5 3 4 Detach . | . . . Swap 13 | . 2 11 Drop 7 | . 2 5 Fire 51 | . 12 39 Melee . | . . . Ram 1 | . . 1 Kick . | . . . Crush . | . . . Escape Stasis . | . . . Rewire . | . . . Trap . | . . . Miscellaneous . | . . . Route ------- -11/Scrapyard -10/Materials -9/Materials History --------- Turn | Location | Event 9 | -11/Scrapyard | Discovered new exit (range 16) 39 | -11/Scrapyard | Entered Materials 191 | -10/Materials | Discovered new exit (range 8) 198 | -10/Materials | Entered another Materials area 198 | -9/Materials | Evolved 2 slots: Utility x2 308 | -9/Materials | Build established: Mutant 1198 | -9/Materials | System corruption reached 10% 1202 | -9/Materials | Self-destructed Last Messages --------------- 00988_ Acquired Flight Unit. 00990_ Acquired 10 matter. 01008_ Slammed into M-13 Machinist. 01026_ K-01 Serf cleans the Electrolysis Chamber. 01154_ W-16 Scout sends out distress signal. 01186_ Sensor Array destroyed. 01186_ System corrupted by crushing effect (+2). 01192_ System corrupted: Matter fused (-8). 01192_ Critical hit (Smash). 01192_ Lgt. EM Pulse Cannon destroyed. 01192_ System corrupted by crushing effect (+1). 01193_ K-01 Serf collects debris. 01195_ Flight Unit destroyed. 01195_ System corrupted by crushing effect (+3). 01197_ Targeting Computer destroyed. 01197_ Imp. Ion Engine destroyed. 01197_ System corrupted by crushing effect (+5). 01197_ System corrupted by crushing effect (+2). 01197_ Knocked back. 01200_ B-36 Bruiser destroyed. Map ----- +----------------------------------------------------+ | ????????????????????# #?????????? | | ????????????????????# +?????????? | | ????????????????????# #?????????? | | ????????????????????# #?????????? | | ????????????????????# #????#????? | | ???????????????????? ???# ????? | | ?????????????????????* ????# ????? | | ?????????????????????% ????# #???? | | ????????????????????? ????# #???? | | ????????????????????? ????# #???? | | ?????????????????????# #????# #???? | | ?????????????????????# #????# #???? | | ?????????????????????# #????# #?##? | | ?????????????????????# #????#### ## | | ?????????????????????# ######= # | | ????????"???????#????# +%"T" # | | ???? """???????????#######%# # | | ???? """ ???######## +%+ # | | ????? ???# # # #!]]! # | | ????? ??# "" #"" # # ]!! # | | ??????""" ??# """#"Y # # ]!! # | | ???# """ ?# =* S"#"" # ####### | | ??## """ ?# % # # #?????? | | ??#" # %% ## #### #?????? | | ??#T ##+########### #?????? | | ???? """ kku !%@/%#?????? | | ???? """ % ############+####??? | | ???? """ # #?# = ##?? | | ???? # #?# " ! #?? | | ???# # ### T![ ##?? | | ???# "" # " + " / #??? | | ???+ """ # ### ! #??? | | ???# """ # ############?? | | ???# # ## #?? | | ??## # ##" #?? | | ### """ ###+####T """ #?? | | """ % #" """ #?? | | """ + """ #?? | | # #?? | | ??# # #?? | | ???# !! # #?? | | ???# ! ###########?? | | ???# ####???????????? | | ???# ] #??????????????? | | ???#^ #??????????????? | | ???# ]] #??????????????? | | ???# ]] #######????????? | | ???# [[ #????????? | | ???# #????????? | | ???# #?????#??? | +----------------------------------------------------+ Best States ------------- Heat Dissipation 38 Energy Generation 12 Energy Capacity 265 Matter Stores 300 Matter Capacity 300 Sight Range 16 Robot Scan Range 14 Terrain Scan Range 14 Terrain Scan Density 10 Armor Coverage 150 Evasion (%) 42 Targeting Accuracy 5 Item Schematics ----------------- None Robot Schematics ------------------ None Fabricated ------------ Nothing Alien Tech Used ----------------- None Achievements -------------- None Challenges ------------ None Game ------ Seed ImprinterWeightCannon Manual? 0 Play Time 00:11:14 Cumulative 4.1 hours Start 2024.03.31 @ 19:12:21 End 2024.03.31 @ 19:21:36 Sessions 1 Manual Loads 0 Difficulty Rogue Special Mode None Game No. 15 Rogue 15 Adventurer 0 Explorer 0 Win Type - Total 0 Types 0/0/0/0/0/0/0/0/0 Lore% 3 Gallery% 14 Achievement% 12 Wizard Run 0 Options --------- Layout 0 ASCII 0 Keyboard 0 Movement Mouse Keybinds 0 Fullscreen 1 Font 18/SmallcapsGlow Map View 76x50 Zoom Use 0% Tactical HUD 1 Map Filters NONE Filters NONE Steam 1 RUN: 4080eee7-7ef2-48d8-a3d5-1e5abc086325